bitfinex/quotes_BTCUSD_20240918
["timestamp","ask_amount","ask_price","bid_price","bid_amount"]
[1726672856058,0.093,59679.0,59670.0,0.00082]
[1726672856059,0.167572,59676.0,59670.0,0.00082]
[1726672856301,0.167573,59676.0,59673.0,0.167579]
[1726672856509,0.01926991,59675.0,59670.0,0.168405]
[1726672856718,0.335146,59676.0,59671.0,0.167584]
[1726672856928,0.167579,59674.0,59670.0,0.00082]
[1726672857363,0.01926991,59673.0,59670.0,0.00082]
[1726672857794,0.01926991,59673.0,59671.0,0.167584]
[1726672858217,0.18684991,59673.0,59670.0,0.168406]
[1726672858856,0.01926991,59673.0,59670.0,0.168406]
[1726672859070,0.18684991,59673.0,59670.0,0.168406]
[1726672860161,0.01926991,59673.0,59672.0,0.837912]
[1726672860615,0.093,59679.0,59672.0,0.837912]
[1726672860616,0.093,59679.0,59674.0,0.167575]
[1726672860831,0.167569,59677.0,59674.0,0.167577]
[1726672861045,0.18689052,59678.0,59675.0,0.167573]
[1726672861259,0.093,59679.0,59670.0,0.01282]
[1726672861476,0.335144,59676.0,59670.0,0.01282]
[1726672861684,0.502756,59671.0,59670.0,0.00082]
[1726672861906,0.52208222,59671.0,59670.0,0.00082]
[1726672862121,0.18691122,59671.0,59670.0,0.00982]
[1726672862365,0.01932622,59671.0,59670.0,0.00982]
[1726672862603,0.18691122,59671.0,59670.0,0.00982]
[1726672862808,0.167583,59672.0,59670.0,0.00982]
[1726672863015,0.01932484,59671.0,59670.0,0.00982]
[1726672863503,0.18690984,59671.0,59670.0,0.00982]
[1726672863742,0.18690984,59671.0,59670.0,0.00082]
[1726672863998,0.01932484,59671.0,59670.0,0.00082]
[1726672865766,0.01932484,59671.0,59670.0,0.00682]
[1726672866190,0.18690984,59671.0,59670.0,0.00682]
[1726672866626,0.01932484,59671.0,59670.0,0.00682]
[1726672866843,0.18690984,59671.0,59670.0,0.00082]
[1726672867104,0.18690984,59671.0,59670.0,0.01182]
[1726672867549,0.01932484,59671.0,59670.0,0.00082]
[1726672867750,0.16758,59673.0,59670.0,0.00082]
[1726672867969,0.01932484,59672.0,59670.0,0.00082]
[1726672868609,0.18690784,59672.0,59670.0,0.00082]
[1726672869039,0.18690784,59672.0,59670.0,0.00982]
[1726672869475,0.18690784,59672.0,59670.0,0.00082]
[1726672869699,0.01932484,59672.0,59670.0,0.168407]
[1726672869922,0.01932484,59672.0,59671.0,1.173098]
[1726672870139,0.335112,59682.0,59674.0,0.335149]
[1726672870357,0.01930728,59681.0,59676.0,0.335141]
[1726672870565,0.01930728,59681.0,59679.0,0.167562]
[1726672870780,0.01930728,59681.0,59678.0,0.167565]
[1726672871001,0.001642,59685.0,59676.0,0.1586121]
[1726672871243,0.01933474,59680.0,59679.0,0.167563]
[1726672871475,0.001642,59685.0,59682.0,0.167552]
[1726672871476,0.169189,59685.0,59682.0,0.167552]
[1726672871769,0.169189,59685.0,59684.0,0.99300597]
[1726672871770,0.001642,59685.0,59684.0,0.99300597]
[1726672873987,0.001642,59685.0,59684.0,0.502647]
[1726672874659,0.001642,59685.0,59684.0,0.014]
[1726672874892,0.839372,59685.0,59684.0,0.014]
[1726672875106,1.33751767,59685.0,59684.0,0.014]
[1726672875979,1.43211767,59685.0,59684.0,0.014]
[1726672876637,0.16757,59677.0,59672.0,0.167581]
[1726672877306,0.335132,59678.0,59672.0,0.167581]
[1726672877307,0.167572,59676.0,59672.0,0.167581]
[1726672877519,0.167572,59676.0,59673.0,0.167579]
[1726672877725,0.167572,59676.0,59671.0,0.335167]
[1726672877956,0.167575,59675.0,59671.0,0.167584]
[1726672878423,0.167571,59676.0,59672.0,0.167582]
[1726672878637,0.167574,59675.0,59672.0,0.167582]
[1726672879503,0.167572,59676.0,59672.0,0.167582]
[1726672879746,0.167568,59677.0,59673.0,0.167579]
[1726672880170,0.167571,59676.0,59673.0,0.167579]
[1726672880378,0.167572,59676.0,59672.0,0.167581]
[1726672880823,0.167572,59676.0,59673.0,0.167579]
[1726672881472,0.167568,59677.0,59673.0,0.167579]
[1726672882621,0.167568,59677.0,59673.0,0.172579]
[1726672882833,0.167568,59677.0,59673.0,0.167579]
[1726672883279,0.167568,59677.0,59673.0,0.172579]
[1726672883918,0.59439067,59685.0,59673.0,0.005]
[1726672883919,0.33511,59682.0,59673.0,0.005]
[1726672884135,0.49816367,59682.0,59673.0,0.005]
[1726672884342,0.167565,59678.0,59674.0,0.167576]
[1726672884554,0.167563,59679.0,59675.0,0.167573]
[1726672884987,0.167567,59678.0,59674.0,0.167576]
[1726672885202,0.167563,59679.0,59675.0,0.167574]
[1726672885419,0.167563,59679.0,59673.0,0.005]
[1726672885420,0.167563,59679.0,59673.0,0.340154]
[1726672885623,0.167565,59678.0,59674.0,0.167574]
[1726672886088,0.167565,59678.0,59675.0,0.167574]
[1726672886559,0.01941487,59677.0,59675.0,0.167574]
[1726672886790,0.01941487,59677.0,59676.0,0.167571]
[1726672887014,0.335106,59683.0,59676.0,0.167571]
[1726672887015,0.001642,59685.0,59676.0,0.49375521]
[1726672887224,0.169189,59685.0,59682.0,0.167552]
[1726672887665,0.169189,59685.0,59681.0,0.167557]
[1726672887899,0.001642,59685.0,59678.0,0.33513]
[1726672888153,0.167552,59683.0,59680.0,0.16756]
[1726672888380,0.167552,59683.0,59679.0,0.167562]
[1726672888622,0.167552,59683.0,59680.0,0.16756]
[1726672889279,0.001642,59685.0,59682.0,0.167554]
[1726672889521,0.001642,59685.0,59682.0,0.167553]
[1726672889726,0.169188,59685.0,59682.0,0.167553]
[1726672890179,0.169188,59685.0,59681.0,0.171557]
[1726672890393,0.167549,59684.0,59681.0,0.171557]
[1726672891036,0.001642,59685.0,59684.0,0.167549]
[1726672891258,0.001642,59685.0,59683.0,0.167551]
[1726672892325,0.001642,59685.0,59684.0,0.167549]
[1726672895352,0.001642,59685.0,59684.0,0.502647]
[1726672895561,0.001642,59685.0,59684.0,0.171549]
[1726672895989,0.001642,59685.0,59684.0,0.004]
[1726672896198,0.001642,59685.0,59684.0,0.171549]
[1726672898474,0.001642,59685.0,59684.0,0.506647]
[1726672900194,0.0211484,59685.0,59684.0,0.506647]
[1726672900423,0.0211484,59685.0,59684.0,0.171549]
[1726672902140,0.0211484,59685.0,59684.0,0.004]
[1726672905991,0.0211484,59685.0,59684.0,0.171549]
[1726672906206,0.0211484,59685.0,59684.0,0.841745]
[1726672906410,0.001642,59685.0,59684.0,0.841745]
[1726672907243,0.001642,59685.0,59684.0,1.176843]
[1726672907867,0.001642,59685.0,59684.0,0.841745]
[1726672908889,0.001642,59685.0,59684.0,0.837745]
[1726672909295,0.001642,59685.0,59684.0,0.851745]
[1726672909938,0.001642,59685.0,59684.0,1.34210397]
[1726672910155,0.001642,59685.0,59684.0,1.50715764]
[1726672910371,0.001642,59685.0,59684.0,1.89238869]
[1726672910576,0.001642,59685.0,59684.0,1.50715764]
[1726672910779,0.001642,59685.0,59684.0,1.55729069]
[1726672910994,0.001642,59685.0,59684.0,1.55529069]
[1726672911210,0.001642,59685.0,59684.0,1.55525349]
[1726672911415,0.001642,59685.0,59684.0,1.50597864]
[1726672911681,0.001642,59685.0,59684.0,1.49197864]
[1726672911856,0.001642,59685.0,59684.0,1.50797864]
[1726672912056,0.001642,59685.0,59684.0,1.50597864]
[1726672912274,0.001642,59685.0,59684.0,1.51609309]
[1726672916708,0.001642,59685.0,59684.0,1.58321609]
[1726672920915,0.001642,59685.0,59684.0,1.41784067]
[1726672922618,0.001642,59685.0,59684.0,2.27439964]
[1726672922830,0.001542,59685.0,59684.0,2.50031794]
[1726672923054,0.001542,59685.0,59684.0,2.53391794]
[1726672923270,0.001542,59685.0,59684.0,2.74384764]
[1726672923693,0.001542,59685.0,59684.0,2.72984764]
[1726672923924,0.001442,59685.0,59684.0,2.77525788]
[1726672924148,0.001442,59685.0,59684.0,2.78925788]
[1726672924413,0.001442,59685.0,59684.0,2.74384764]
[1726672925494,0.001442,59685.0,59684.0,2.72984764]
[1726672925923,0.001442,59685.0,59684.0,2.74384764]
[1726672929638,0.001442,59685.0,59684.0,2.72984764]
[1726672930105,0.001442,59685.0,59684.0,2.74384764]
[1726672932981,0.0039514,59704.0,59701.0,0.03]
[1726672933223,0.0038514,59704.0,59703.0,0.837477]
[1726672933466,0.0038514,59704.0,59703.0,1.49078264]
[1726672933914,0.0037514,59704.0,59703.0,1.95577364]
[1726672934137,0.0037514,59704.0,59703.0,2.22241364]
[1726672934374,0.0037514,59704.0,59703.0,2.33292534]
[1726672934658,0.0036514,59704.0,59703.0,2.25801364]
[1726672934869,0.0036514,59704.0,59703.0,2.35789591]
[1726672935087,0.0036514,59704.0,59703.0,2.09697364]
[1726672935327,0.0036514,59704.0,59703.0,1.01070665]
[1726672935543,0.0036514,59704.0,59703.0,0.502486]
[1726672936207,0.0036514,59704.0,59703.0,0.516486]
[1726672936429,0.0036514,59704.0,59703.0,0.014]
[1726672936889,0.0036514,59704.0,59703.0,0.516486]
[1726672937163,0.0036514,59704.0,59703.0,0.014]
[1726672937577,0.0036514,59704.0,59702.0,0.167498]
[1726672937804,0.0036514,59704.0,59698.0,0.335015]
[1726672938015,0.0036514,59704.0,59703.0,0.014]
[1726672938232,0.0036514,59704.0,59701.0,0.167498]
[1726672938448,0.0036514,59704.0,59703.0,0.014]
[1726672938885,0.1711454,59704.0,59700.0,0.167503]
[1726672939089,0.1711454,59704.0,59702.0,0.014]
[1726672939526,0.0953,59703.0,59696.0,0.335029]
[1726672939745,0.167505,59700.0,59695.0,0.167516]
[1726672939948,0.167507,59699.0,59695.0,0.167516]
[1726672940148,0.167511,59698.0,59692.0,0.1]
[1726672940365,0.167511,59698.0,59686.0,0.335086]
[1726672940366,0.0953,59698.0,59686.0,0.335086]
[1726672940788,0.0953,59698.0,59688.0,0.167536]
[1726672940789,0.335026,59697.0,59688.0,0.167536]
[1726672940956,0.167526,59693.0,59688.0,0.167536]
[1726672941441,0.335043,59694.0,59688.0,0.167536]
[1726672941442,0.167527,59692.0,59688.0,0.167536]
[1726672941657,0.335043,59694.0,59688.0,0.167536]
[1726672941880,0.167524,59693.0,59689.0,0.167534]
[1726672942790,0.335026,59697.0,59691.0,0.167527]
[1726672943015,0.0953,59698.0,59694.0,0.16752]
[1726672943235,0.0808,59703.0,59697.0,0.335025]
[1726672943475,0.1675,59702.0,59698.0,0.167507]
[1726672943694,0.0808,59703.0,59697.0,0.335025]
[1726672943695,0.167501,59701.0,59697.0,0.167512]
[1726672944375,0.167501,59701.0,59690.0,0.15526097]
[1726672944376,0.167516,59696.0,59692.0,0.167525]
[1726672944591,0.0953,59695.0,59684.0,0.000821]
[1726672944833,0.167522,59694.0,59688.0,0.335073]
[1726672945055,0.167527,59692.0,59689.0,0.167534]
[1726672945281,0.167527,59692.0,59684.0,0.000821]
[1726672945282,0.0953,59695.0,59684.0,0.168368]
[1726672945511,0.335083,59687.0,59684.0,0.000821]
[1726672945730,0.25056097,59695.0,59684.0,0.000821]
[1726672945947,0.167539,59688.0,59684.0,0.168369]
[1726672946404,0.167544,59686.0,59684.0,0.000821]
[1726672946624,0.02958296,59687.0,59684.0,0.000821]
[1726672946841,0.0791,59689.0,59684.0,0.000821]
[1726672947058,0.0791,59689.0,59685.0,0.33509]
[1726672947059,0.02958296,59686.0,59685.0,0.33509]
[1726672947278,0.0791,59689.0,59684.0,0.335918]
[1726672947535,0.0791,59689.0,59686.0,0.167541]
[1726672947765,0.02958296,59688.0,59686.0,0.167541]
[1726672947981,0.02958296,59688.0,59684.0,0.168367]
[1726672948195,0.02958296,59688.0,59685.0,0.167546]
[1726672948412,0.02958296,59688.0,59686.0,0.167542]
[1726672948654,0.02958296,59688.0,59684.0,0.346914]
[1726672948882,0.02958296,59688.0,59687.0,0.16754]
[1726672949121,0.02958296,59688.0,59687.0,0.502621]
[1726672949336,0.02958296,59688.0,59687.0,0.8410526]
[1726672949559,0.0953,59695.0,59687.0,0.8410526]
[1726672949560,0.0953,59695.0,59690.0,0.335062]
[1726672949784,0.26282,59695.0,59691.0,0.167528]
[1726672950117,0.26282,59695.0,59690.0,0.167531]
[1726672950118,0.19701799,59694.0,59690.0,0.167531]
[1726672950833,0.19701799,59694.0,59690.0,0.16753]
[1726672952435,0.02949699,59694.0,59689.0,0.167532]
[1726672952664,0.02949699,59694.0,59690.0,0.007]
[1726672952665,0.335058,59691.0,59690.0,0.007]
[1726672952892,0.931745,59691.0,59690.0,0.007]
[1726672953117,1.346303,59691.0,59690.0,0.007]
[1726672953357,1.172822,59685.0,59684.0,0.000821]
[1726672953584,1.58523664,59685.0,59684.0,0.000821]
[1726672953808,1.61468109,59685.0,59684.0,0.000821]
[1726672954036,1.94977309,59685.0,59684.0,0.000821]
[1726672954293,2.28486509,59685.0,59684.0,0.000821]
[1726672954509,2.28486509,59685.0,59672.0,0.000821]
[1726672954510,1.83707597,59673.0,59672.0,0.000821]
[1726672954774,2.02312964,59673.0,59672.0,0.000821]
[1726672955018,2.05214868,59673.0,59672.0,0.000821]
[1726672955238,2.05214868,59673.0,59664.0,0.00082]
[1726672955239,0.167602,59665.0,59664.0,0.00082]
[1726672955481,0.94292064,59665.0,59664.0,0.00082]
[1726672955697,1.97754486,59665.0,59664.0,0.00082]
[1726672956369,1.35157297,59660.0,59641.0,0.0079494]
[1726672956633,2.02415864,59660.0,59641.0,0.0079494]
[1726672957131,0.335325,59644.0,59641.0,0.0079494]
[1726672957365,0.335311,59647.0,59641.0,0.0079494]
[1726672957845,0.167665,59643.0,59641.0,0.0079494]
[1726672958534,0.02851364,59642.0,59641.0,0.0079494]
[1726672958754,0.167661,59644.0,59641.0,0.0079494]
[1726672958976,0.02851364,59642.0,59641.0,0.0079494]
[1726672959197,0.49833467,59652.0,59642.0,0.167665]
[1726672959433,0.167649,59649.0,59641.0,0.1756164]
[1726672959664,0.167646,59650.0,59642.0,0.00335299]
[1726672959884,0.1743,59660.0,59642.0,0.00335299]
[1726672960132,1.16905615,59659.0,59641.0,0.0079494]
[1726672960376,0.15526097,59655.0,59641.0,0.0079494]
[1726672960609,0.99359597,59642.0,59641.0,0.0079494]
[1726672960821,1.58908364,59642.0,59641.0,0.0079494]
[1726672961045,1.43382267,59642.0,59641.0,0.0079494]
[1726672961282,2.02541764,59642.0,59641.0,0.0079494]
[1726672961509,0.99369297,59635.0,59634.0,0.001642]
[1726672961730,1.49211964,59635.0,59634.0,0.001642]
[1726672961951,1.52047602,59635.0,59634.0,0.001642]
[1726672963101,1.36521505,59635.0,59634.0,0.001642]
[1726672964248,1.36721505,59635.0,59634.0,0.001642]
[1726672964483,1.36521505,59635.0,59634.0,0.001642]
[1726672964699,1.02984205,59635.0,59634.0,0.002642]
[1726672964923,0.69446905,59635.0,59634.0,0.002642]
[1726672965419,0.35909605,59635.0,59634.0,0.002642]
[1726672965670,0.69446905,59635.0,59634.0,0.002642]
[1726672965923,0.35909605,59635.0,59634.0,0.002642]
[1726672966399,0.69446905,59635.0,59634.0,0.002642]
[1726672966873,1.02984205,59635.0,59634.0,0.002642]
[1726672967106,0.69446905,59635.0,59634.0,0.002642]
[1726672967769,0.35909605,59635.0,59634.0,0.002642]
[1726672967995,0.02835638,59635.0,59634.0,0.002642]
[1726672968439,0.167676,59639.0,59634.0,0.002642]
[1726672968700,0.33073267,59638.0,59634.0,0.002642]
[1726672968921,0.19107232,59638.0,59634.0,0.002642]
[1726672969588,0.02801865,59638.0,59636.0,0.167682]
[1726672969834,0.02801865,59638.0,59634.0,0.169331]
[1726672970085,0.167671,59641.0,59634.0,0.001642]
[1726672970086,0.167672,59641.0,59634.0,0.001642]
[1726672970374,0.02804091,59637.0,59634.0,0.007642]
[1726672970589,0.49839867,59640.0,59634.0,0.001642]
[1726672970818,0.19576909,59636.0,59634.0,0.011642]
[1726672971073,0.49839867,59640.0,59634.0,0.001642]
[1726672971074,0.16305367,59640.0,59634.0,0.001642]
[1726672971301,0.02808509,59635.0,59634.0,0.50471]
[1726672971536,0.02808509,59635.0,59634.0,0.840089]
[1726672971749,0.0281209,59635.0,59634.0,0.50471]
[1726672971966,0.5599,59650.0,59640.0,0.335341]
[1726672972193,0.16305367,59649.0,59634.0,0.001642]
[1726672972416,0.19117457,59649.0,59638.0,0.335353]
[1726672972645,0.19117457,59649.0,59646.0,0.167654]
[1726672972905,0.00164,59641.0,59640.0,0.503016]
[1726672973124,0.00164,59641.0,59640.0,0.838361]
[1726672973812,0.00164,59641.0,59640.0,0.503016]
[1726672974050,0.00164,59641.0,59640.0,0.838361]
[1726672974264,0.00164,59641.0,59640.0,1.173706]
[1726672974717,0.00164,59641.0,59640.0,1.44875967]
[1726672975169,0.00154,59641.0,59640.0,1.78410467]
[1726672975436,0.466,59656.0,59655.0,0.502891]
[1726672975658,0.430293,59668.0,59642.0,0.002]
[1726672975659,0.25144371,59663.0,59651.0,0.23372376]
[1726672975880,0.0951,59668.0,59654.0,0.335264]
[1726672976124,0.03,59679.0,59654.0,0.335264]
[1726672976125,0.09,59685.0,59667.0,0.167595]
[1726672976382,0.335184,59669.0,59651.0,0.39677743]
[1726672976617,0.167592,59669.0,59662.0,0.167609]
[1726672976832,0.02831055,59668.0,59664.0,0.167604]
[1726672977280,0.167586,59671.0,59665.0,0.1676]
[1726672977525,0.167586,59671.0,59663.0,0.335216]
[1726672977526,0.33064067,59671.0,59664.0,0.167604]
[1726672977746,0.02831055,59670.0,59664.0,0.167604]
[1726672977968,0.02831055,59670.0,59664.0,0.167605]
[1726672978412,0.02831055,59670.0,59665.0,0.167602]
[1726672978870,0.19590055,59670.0,59665.0,0.167602]
[1726672979492,0.167591,59669.0,59665.0,0.167602]
[1726672979911,0.02831055,59668.0,59665.0,0.174602]
[1726672980153,0.167599,59666.0,59665.0,0.007]
[1726672980379,1.09355067,59666.0,59665.0,0.007]
[1726672980662,1.48036635,59666.0,59665.0,0.007]
[1726672980883,0.167633,59654.0,59649.0,0.167644]
[1726672981119,0.16305367,59665.0,59647.0,0.335304]
[1726672981332,0.16305367,59665.0,59652.0,0.167638]
[1726672981333,0.02873315,59653.0,59652.0,0.167638]
[1726672981566,0.167625,59657.0,59652.0,0.167638]
[1726672981778,0.502861,59659.0,59653.0,0.167635]
[1726672981986,0.167623,59658.0,59653.0,0.167635]
[1726672982204,0.33521,59664.0,59658.0,0.167621]
[1726672982418,0.16305367,59663.0,59650.0,0.00335241]
[1726672982640,0.16305367,59663.0,59656.0,0.167625]
[1726672982641,0.167616,59660.0,59656.0,0.167625]
[1726672982858,0.167616,59660.0,59654.0,0.16763]
[1726672983104,0.16762,59659.0,59654.0,0.16763]
[1726672983321,0.16762,59659.0,59655.0,0.167629]
[1726672983550,0.335231,59661.0,59655.0,0.167629]
[1726672983551,0.167616,59660.0,59655.0,0.167629]
[1726672983764,0.33066167,59663.0,59659.0,0.167618]
[1726672983989,0.33066167,59663.0,59643.0,0.16305367]
[1726672983990,0.16305367,59663.0,59643.0,0.16305367]
[1726672984205,0.16305367,59663.0,59652.0,0.167637]
[1726672984481,0.167626,59657.0,59653.0,0.004]
[1726672984690,0.16305367,59663.0,59653.0,0.167633]
[1726672984903,0.335242,59659.0,59655.0,0.011]
[1726672985112,0.335247,59658.0,59655.0,0.011]
[1726672985365,0.335247,59658.0,59653.0,0.167633]
[1726672985366,0.167627,59657.0,59653.0,0.167633]
[1726672986064,0.167616,59661.0,59650.0,0.00082]
[1726672986313,0.33066967,59661.0,59657.0,0.167624]
[1726672986521,0.33066967,59661.0,59653.0,0.167633]
[1726672986522,0.167626,59657.0,59653.0,0.167633]
[1726672987422,0.167631,59655.0,59652.0,0.167637]
[1726672987635,0.335234,59660.0,59653.0,0.167634]
[1726672987846,0.167625,59657.0,59655.0,0.012]
[1726672988279,0.167627,59656.0,59653.0,0.167634]
[1726672988502,0.167627,59656.0,59653.0,0.178634]
[1726672988948,0.167625,59657.0,59653.0,0.167634]
[1726672989162,0.167625,59657.0,59655.0,0.014]
[1726672990047,0.49828167,59661.0,59655.0,0.014]
[1726672990048,0.335233,59660.0,59655.0,0.014]
[1726672990286,0.167626,59657.0,59655.0,0.014]
[1726672990502,0.167626,59657.0,59653.0,0.167635]
[1726672990940,0.167628,59656.0,59653.0,0.179635]
[1726672991152,0.167628,59656.0,59653.0,0.167635]
[1726672991370,0.335248,59658.0,59651.0,0.335279]
[1726672991371,0.167631,59655.0,59651.0,0.16764]
[1726672991581,0.167627,59656.0,59655.0,0.014]
[1726672991799,0.167623,59658.0,59654.0,0.167632]
[1726672992008,0.167625,59657.0,59654.0,0.167632]
[1726672992231,0.167629,59656.0,59653.0,0.012]
[1726672992442,0.167629,59656.0,59653.0,0.179635]
[1726672993298,0.167633,59654.0,59653.0,0.012]
[1726672993952,0.167631,59655.0,59653.0,0.012]
[1726672994167,0.335246,59658.0,59650.0,0.336104]
[1726672994379,0.167627,59656.0,59652.0,0.167637]
[1726672995037,0.167631,59655.0,59653.0,0.014]
[1726672995476,0.167631,59655.0,59652.0,0.167637]
[1726672995694,0.167631,59655.0,59652.0,0.179637]
[1726672995906,0.167634,59654.0,59652.0,0.012]
[1726672997046,0.167634,59654.0,59651.0,0.16764]
[1726672997270,0.16763,59655.0,59651.0,0.16764]
[1726672997938,0.16763,59655.0,59652.0,0.167638]
[1726672998163,0.167628,59656.0,59652.0,0.168458]
[1726672998410,0.167628,59656.0,59653.0,0.013]
[1726672998616,0.167628,59656.0,59652.0,0.168458]
[1726672998828,0.335254,59657.0,59652.0,0.00082]
[1726672999268,0.167632,59655.0,59652.0,0.00082]
[1726672999730,0.335256,59656.0,59652.0,0.168458]
[1726672999731,0.16763,59656.0,59652.0,0.168458]
[1726672999968,0.167631,59655.0,59652.0,0.168458]
[1726673000183,0.16305367,59661.0,59653.0,0.167635]
[1726673000393,0.16762,59659.0,59655.0,0.167628]
[1726673000602,0.335251,59657.0,59652.0,0.168458]
[1726673000830,0.167628,59656.0,59653.0,0.167635]
[1726673001047,0.167628,59656.0,59652.0,0.00082]
[1726673001048,0.167628,59656.0,59652.0,0.168458]
[1726673001313,0.167631,59655.0,59652.0,0.168458]
[1726673001542,0.167627,59656.0,59652.0,0.168458]
[1726673001756,0.167627,59656.0,59653.0,0.012]
[1726673001981,0.167623,59658.0,59652.0,0.00082]
[1726673002204,0.167623,59658.0,59654.0,0.167631]
[1726673002420,0.33524,59659.0,59652.0,0.01282]
[1726673002421,0.167628,59656.0,59652.0,0.01282]
[1726673002634,0.167624,59658.0,59653.0,0.33527]
[1726673002882,0.16762,59659.0,59656.0,0.167626]
[1726673003103,0.167619,59659.0,59655.0,0.16763]
[1726673003316,0.335234,59660.0,59654.0,0.167632]
[1726673003541,0.167623,59658.0,59654.0,0.167632]
[1726673004244,0.167624,59657.0,59654.0,0.167632]
[1726673004496,0.167624,59657.0,59652.0,0.01382]
[1726673004497,0.335252,59657.0,59652.0,0.01382]
[1726673004712,0.167631,59655.0,59652.0,0.181458]
[1726673004931,0.335252,59657.0,59652.0,0.181458]
[1726673004932,0.167628,59656.0,59652.0,0.181458]
[1726673005181,0.167629,59656.0,59652.0,0.168458]
[1726673005468,0.167628,59656.0,59652.0,0.168458]
[1726673005693,0.24585367,59662.0,59652.0,0.00082]
[1726673005910,0.167617,59660.0,59657.0,0.167624]
[1726673006123,0.167617,59660.0,59656.0,0.178627]
[1726673006366,0.16762,59659.0,59656.0,0.178627]
[1726673006587,0.19622117,59659.0,59655.0,0.16763]
[1726673006851,0.02860117,59659.0,59656.0,0.167625]
[1726673007075,0.02860117,59659.0,59652.0,0.01282]
[1726673007302,0.36384217,59659.0,59653.0,0.167634]
[1726673007529,0.167628,59656.0,59653.0,0.167634]
[1726673007757,0.167628,59656.0,59652.0,0.348095]
[1726673007974,0.335255,59656.0,59652.0,0.01282]
[1726673008191,0.167636,59653.0,59652.0,0.00082]
[1726673008418,0.83818,59653.0,59652.0,0.00082]
[1726673008660,1.09843367,59653.0,59652.0,0.00082]
[1726673008917,1.48531884,59653.0,59652.0,0.00082]
[1726673009160,1.058407,59651.0,59650.0,0.00082]
[1726673009402,0.503059,59635.0,59634.0,0.001642]
[1726673010061,0.8669496,59635.0,59634.0,0.001642]
[1726673011229,1.2023226,59635.0,59634.0,0.001642]
[1726673011661,1.46537627,59635.0,59634.0,0.001642]
[1726673011667,2.15959651,59635.0,59634.0,0.001642]
[1726673012347,2.15959651,59635.0,59634.0,0.012642]
[1726673012569,2.15959651,59635.0,59634.0,0.001642]
[1726673012802,2.15959651,59635.0,59634.0,0.002642]
[1726673012803,1.82422351,59635.0,59634.0,0.002642]
[1726673013032,1.64557627,59635.0,59634.0,0.002642]
[1726673013255,1.64557627,59635.0,59634.0,0.001642]
[1726673013697,1.64557627,59635.0,59634.0,0.002642]
[1726673014392,1.80122351,59635.0,59634.0,0.002642]
[1726673015047,2.15959651,59635.0,59634.0,0.001642]
[1726673015494,2.49496951,59635.0,59634.0,0.001642]
[1726673015929,2.49696951,59635.0,59634.0,0.001642]
[1726673016136,2.50096951,59635.0,59634.0,0.001642]
[1726673016354,2.15959651,59635.0,59634.0,0.001642]
[1726673016578,2.17379893,59635.0,59634.0,0.002642]
[1726673017050,2.16359651,59635.0,59634.0,0.002642]
[1726673018170,2.15959651,59635.0,59634.0,0.001642]
[1726673018596,2.16359651,59635.0,59634.0,0.002642]
[1726673018807,2.15959651,59635.0,59634.0,0.001642]
[1726673019226,2.16359651,59635.0,59634.0,0.001642]
[1726673020068,2.15959651,59635.0,59634.0,0.001642]
[1726673021587,2.16359651,59635.0,59634.0,0.001642]
[1726673021805,2.15959651,59635.0,59634.0,0.001642]
[1726673022252,2.16259651,59635.0,59634.0,0.001642]
[1726673023176,2.00694927,59635.0,59634.0,0.001642]
[1726673024471,1.64857627,59635.0,59634.0,0.001642]
[1726673024717,1.64557627,59635.0,59634.0,0.001642]
[1726673024936,1.64757627,59635.0,59634.0,0.001642]
[1726673025379,1.54557627,59635.0,59634.0,0.001642]
[1726673025614,1.82522351,59635.0,59634.0,0.001642]
[1726673026077,2.16059651,59635.0,59634.0,0.001642]
[1726673026290,2.16059651,59635.0,59634.0,0.003642]
[1726673027799,2.15959651,59635.0,59634.0,0.001642]
[1726673028159,2.16059651,59635.0,59634.0,0.001642]
[1726673028945,2.15959651,59635.0,59634.0,0.001642]
[1726673029199,2.19559651,59635.0,59634.0,0.002642]
[1726673029634,2.18959651,59635.0,59634.0,0.001642]
[1726673030057,2.19980739,59635.0,59634.0,0.001642]
[1726673030982,2.20480739,59635.0,59634.0,0.001642]
[1726673031224,2.19980739,59635.0,59634.0,0.001642]
[1726673031660,2.20480739,59635.0,59634.0,0.002642]
[1726673031867,2.19980739,59635.0,59634.0,0.001642]
[1726673032337,2.20480739,59635.0,59634.0,0.001642]
[1726673034968,2.19459651,59635.0,59634.0,0.001642]
[1726673035189,1.82922351,59635.0,59634.0,0.001642]
[1726673035397,1.67357627,59635.0,59634.0,0.001642]
[1726673035607,1.65057627,59635.0,59634.0,0.001642]
[1726673035837,1.82922351,59635.0,59634.0,0.001642]
[1726673036068,1.82422351,59635.0,59634.0,0.001642]
[1726673036285,2.15959651,59635.0,59634.0,0.001642]
[1726673036502,2.17692961,59635.0,59634.0,0.001642]
[1726673037156,1.84155661,59635.0,59634.0,0.001642]
[1726673037592,2.17892961,59635.0,59634.0,0.001642]
[1726673037812,2.17692961,59635.0,59634.0,0.001642]
[1726673038029,2.18192961,59635.0,59634.0,0.001642]
[1726673038445,2.17692961,59635.0,59634.0,0.001642]
[1726673038887,2.18092961,59635.0,59634.0,0.001642]
[1726673040694,2.18102489,59635.0,59634.0,0.001642]
[1726673042883,2.51639789,59635.0,59634.0,0.001642]
[1726673043102,2.54639789,59635.0,59634.0,0.001642]
[1726673043323,2.21103366,59635.0,59634.0,0.001642]
[1726673043773,2.21103366,59635.0,59634.0,0.001742]
[1726673046445,2.54640666,59635.0,59634.0,0.001742]
[1726673046673,2.21115839,59635.0,59634.0,0.001742]
[1726673047115,2.54653165,59635.0,59634.0,0.001742]
[1726673047578,2.21115865,59635.0,59634.0,0.001742]
[1726673047842,2.18115865,59635.0,59634.0,0.001642]
[1726673048522,2.17715865,59635.0,59634.0,0.001642]
[1726673048754,2.18215865,59635.0,59634.0,0.002642]
[1726673050084,2.16449651,59635.0,59634.0,0.002642]
[1726673050326,2.17708424,59635.0,59634.0,0.001642]